Cogmind - Beta 12 @@@ ROGUE MODE // 2023.05.06 @ 01:05:28 Player: Mr Goldstein Result: Self-destructed Performance ------------- Evolutions (2) 1000 Regions Visited (5) 1000 Robots Destroyed (95) 475 Value Destroyed (2192) 2192 Prototype IDs (24) 480 Alien Tech Used (0) 0 Bonus (365) 365 TOTAL SCORE: 5512 Bonus ------- High Alert Combat Kills 65 Aligned with FarCom 300 Cogmind --------- Core Integrity 222/550 Matter 285/300 Energy 280/280 System Corruption 0% Temperature Cool (0) Movement Rolling (110) Ox2 Location -8/Materials Parts ------- > --- POWER (1) -------- Cooled Ion Engine > --- PROPULSION (4) --- Wheel Wheel Wheel Wheel > --- UTILITY (4) ------ Heat Sink Huge Storage Unit > --- WEAPON (2) ------- Improved Light Cannon Assault Cannon > --- INVENTORY (25) --- Light Ion Engine Cooled Ion Engine Cooled Ion Engine Light Nuclear Core Compact Wheel Compact Wheel Superbattery (1500) High-capacity Matter Pod (127) Structural Scanner Signal Interpreter Light Assault Rifle Light Assault Rifle Light Assault Rifle Heavy Assault Rifle Minigun Minigun Minigun Minigun Minigun Assault Cannon Mini Grenade Launcher Mini Grenade Launcher Mini Grenade Launcher Mini Grenade Launcher Datajack Peak State ------------ > --- POWER ------------ Cooled Ion Engine > --- PROPULSION ------- Wheel Wheel Compact Wheel Compact Wheel > --- UTILITY ---------- Huge Storage Unit Weapon Shielding Backup Plating I Hardened Medium Armor Plating > --- WEAPON ----------- Minigun Minigun > --- INVENTORY -------- Ion Engine Cooled Ion Engine Cooled Ion Engine Light Nuclear Core Wheel Compact Wheel Heat Sink Superbattery High-capacity Matter Pod Structural Scanner Signal Interpreter Assault Rifle Assault Rifle Light Assault Rifle Minigun Minigun Minigun Improved Light Cannon Improved Light Cannon Improved Light Cannon Mini Grenade Launcher Mini Grenade Launcher Mini Grenade Launcher Mini Grenade Launcher Datajack [Rating: 24] Favorites ----------- Power Cooled Ion Engine Engine Cooled Ion Engine Propulsion Compact Wheel Wheel Compact Wheel Utility Huge Storage Unit Device Heat Sink Storage Huge Storage Unit Protection Weapon Shielding Weapon Mini Grenade Launcher Ballistic Gun Assault Rifle Ballistic Cannon Improved Light Cannon Launcher Mini Grenade Launcher Special Melee Weapon Datajack Build | -11 -10 -10 -10 -9 -8 ------- Run | Jun Mat Min Exi Min Mat Slots Evolved 4 | . . . . . 4 Power . | . . . . . . Propulsion 2 | . . . . . 2 Utility 2 | . . . . . 2 Weapon . | . . . . . . Parts Attached 57 | 8 18 4 . . 27 Power 4 | 2 2 . . . . Engine 4 | 2 2 . . . . Core . | . . . . . . Reactor . | . . . . . . Propulsion 19 | 2 4 . . . 13 Treads . | . . . . . . Leg . | . . . . . . Wheel 19 | 2 4 . . . 13 Hover . | . . . . . . Flight . | . . . . . . Utility 9 | 1 4 . . . 4 Device 3 | . 2 . . . 1 Storage 2 | 1 1 . . . . Processor . | . . . . . . Hackware . | . . . . . . Protection 4 | . 1 . . . 3 Artifact . | . . . . . . Weapon 25 | 3 8 4 . . 10 Energy Gun . | . . . . . . Energy Cannon . | . . . . . . Ballistic Gun 15 | 3 5 2 . . 5 Ballistic Cannon 5 | . . . . . 5 Launcher 4 | . 2 2 . . . Special Weapon . | . . . . . . Impact Weapon . | . . . . . . Slashing Weapon . | . . . . . . Piercing Weapon . | . . . . . . Special Melee Weapon 1 | . 1 . . . . Unidentified Prototypes 1 | . 1 . . . . Parts Lost 15 | . 2 . . . 13 Power 1 | . 1 . . . . Propulsion 9 | . . . . . 9 Utility 5 | . 1 . . . 4 Weapon . | . . . . . . Highest Loss Streak 4 | . 1 . . . 4 To Critical Strikes . | . . . . . . Average Slot Usage (%) 87 | . 97 100 100 100 65 Engine 12 | . 13 14 14 14 9 Wheel 26 | . 28 28 28 28 22 Device 1 | . 2 . . . 1 Storage 12 | . 14 14 14 14 9 Protection 9 | . 9 14 14 14 5 Ballistic Gun 13 | . 27 4 . . 5 Ballistic Cannon 3 | . . . . . 12 Launcher 7 | . . 23 28 28 . Naked Turns . | . . . . . . Heaviest Build 104 | 14 93 93 91 91 104 Greatest Support 52 | 20 32 32 32 32 52 Greatest Overweight (x) 31 | 2 4 2 2 2 31 Average Overweight (x) 2 | . 1 2 2 2 3 Largest Inventory Capacity 25 | 8 25 25 25 25 25 Average Capacity 22 | 7 19 25 25 25 25 Most Carried 25 | 2 22 22 23 23 25 Average Carried 18 | . 10 21 22 23 24 Final Capacity 25 | 8 25 25 25 25 25 Final Carried 25 | 2 21 22 23 23 25 Class Distribution -------------------- 78% | Mutant 21% | Scavenger-Mutant Dominant Class ---------------- Mutant | -10/Materials Mutant | -10/Mines Mutant | -10/Exiles Mutant | -9/Mines Mutant | -8/Materials Resources | -11 -10 -10 -10 -9 -8 ----------- Run | Jun Mat Min Exi Min Mat Matter Collected 2707 | 204 876 150 . 20 1457 Remotely . | . . . . . . Salvage Created 2878 | . 1242 222 . 5 1409 Parts 185 | . 82 12 . . 91 Haulers Intercepted 4 | . 2 . . . 2 Recyclers Shooed 4 | . 1 1 . . 2 Parts Field Recycled . | . . . . . . Retrieved Matter . | . . . . . . Parts Self-Destructed . | . . . . . . Prevented . | . . . . . . Kills | -11 -10 -10 -10 -9 -8 ------- Run | Jun Mat Min Exi Min Mat Combat Hostiles Destroyed 63 | . 28 4 . 1 30 Guns 49 | . 28 2 . . 19 Cannons 11 | . . . . . 11 AOE 3 | . . 2 . 1 . Classes Destroyed 12 | . 9 . . 1 2 Worker 11 | . 1 . . . 10 Builder 5 | . 2 . . . 3 Tunneler 1 | . 1 . . . . Hauler 4 | . 2 . . . 2 Recycler 5 | . 1 1 . . 3 Operator 2 | . 1 . . . 1 Watcher 5 | . 3 . . . 2 Swarmer 20 | . 9 . . . 11 Grunt 37 | . 19 4 . . 14 Sentry 4 | . . . . . 4 Hunter 1 | . . . . . 1 Assembled 1 | . . . . 1 . Best Kill Streak 7 | . 4 2 . 1 7 Combat Bots Only 6 | . 4 2 . 1 6 Max Kills in Single Turn 2 | . 1 2 . 1 2 Gunslinging 1 | . . . . . 1 Exploded 2 | . . 2 . 1 . Melee . | . . . . . . Uniques/NPCs Destroyed . | . . . . . . Combat | -11 -10 -10 -10 -9 -8 -------- Run | Jun Mat Min Exi Min Mat Damage Taken 2639 | . 799 84 . 72 1684 Core 577 | . 222 14 . 13 328 Absorbed by Shields . | . . . . . . Redirected to Shielding 54 | . 29 11 . . 14 Regen/Repaired (Parts) 276 | . 161 . . . 115 Core Remaining (%) 50 | 100 . . . . . Volleys Fired 295 | . 137 11 . 1 146 Largest 2 | . 2 2 . 2 2 Hottest 83 | . 40 60 . 60 83 Shots Fired 590 | . 274 22 . 2 292 Gun 435 | . 274 20 . . 141 Cannon 151 | . . . . . 151 Launcher 4 | . . 2 . 2 . Special . | . . . . . . Kinetic 586 | . 274 20 . . 292 Thermal . | . . . . . . Explosive 4 | . . 2 . 2 . Electromagnetic . | . . . . . . Robot Hit Streak 28 | . 19 22 . . 28 Robot Miss Streak 6 | . 6 . . . 5 Penetration Max . | . . . . . . Secondary Targets 3 | . . . . . 3 Max Gunslinging Chain 1 | . . . . . 1 Shots Hit Robots 372 | . 169 19 . . 184 Core Hits 160 | . 76 9 . 1 74 Critical Kills 1 | . . . . . 1 Critical Parts Destroyed . | . . . . . . Critical Strikes 6 | . . . . . 6 Destroy 1 | . . . . . 1 Blast 5 | . . . . . 5 Melee Attacks . | . . . . . . Impact . | . . . . . . Slashing . | . . . . . . Piercing . | . . . . . . Sneak Attacks . | . . . . . . Combat Hostiles . | . . . . . . Follow-up Attacks . | . . . . . . Damage Inflicted 5689 | . 1683 388 . 46 3572 Guns 3460 | . 1683 241 . . 1536 Cannons 2036 | . . . . . 2036 Explosions 193 | . . 147 . 46 . Melee . | . . . . . . Ramming . | . . . . . . Kinetic 5496 | . 1683 241 . . 3572 Thermal 54 | . . 54 . . . Explosive 139 | . . 93 . 46 . Electromagnetic . | . . . . . . Impact . | . . . . . . Slashing . | . . . . . . Piercing . | . . . . . . Highest Corruption . | . . . . . . Average Corruption . | . . . . . . Corruption Purged . | . . . . . . Corruption Blocked . | . . . . . . Overload Shots . | . . . . . . Overflow Damage 66 | . . . . . 66 Projectiles 66 | . . . . . 66 Explosions . | . . . . . . Melee . | . . . . . . Knockbacks 21 | . . . . . 21 Impact . | . . . . . . Kinetic 21 | . . . . . 21 Secondary . | . . . . . . Self-Inflicted Damage 41 | . . . . 41 . Shots 1 | . . . . 1 . Rammed . | . . . . . . Targets Rammed . | . . . . . . Kicked . | . . . . . . Crushed . | . . . . . . Highest Temperature 55 | . 6 . . . 55 Average Temperature 20 | . 4 . . . 21 Received Heat Transfer 951 | . 264 51 . . 636 Siege Activations . | . . . . . . Robots Corrupted . | . . . . . . Combat Hostiles . | . . . . . . Parts Fried . | . . . . . . Impact Corruptions . | . . . . . . Robots Melted . | . . . . . . Combat Hostiles . | . . . . . . Parts Melted . | . . . . . . Heat Transferred 50 | . . 50 . . . Parts Sabotaged . | . . . . . . Parts Stolen . | . . . . . . Parts Stripped . | . . . . . . Power Chain Reactions . | . . . . . . Missiles Intercepted . | . . . . . . Alert | -11 -10 -10 -10 -9 -8 ------- Run | Jun Mat Min Exi Min Mat Peak Influence 459 | . 423 294 . 15 459 Initial 142 | . . 142 . . 5 Average 237 | . 269 152 . 9 290 Maximum Alert Level 2 | . 2 1 . . 2 Low Security (%) 29 | 100 16 59 . 100 15 Level 1 62 | . 79 40 . . 67 Level 2 7 | . 4 . . . 16 Level 3 . | . . . . . . Level 4 . | . . . . . . Level 5 . | . . . . . . High Security . | . . . . . . Max Security . | . . . . . . Squads Dispatched 11 | . 7 . . . 4 Investigation 8 | . 6 . . . 2 Extermination . | . . . . . . Reinforcement 3 | . 1 . . . 2 Assault . | . . . . . . Garrison . | . . . . . . Intercept . | . . . . . . Searches Triggered . | . . . . . . Construction Impeded 1 | . . . . . 1 Haulers Reinforced . | . . . . . . Active Scanning Responses . | . . . . . . Cargo Convoy Interrupts . | . . . . . . Stealth | -11 -10 -10 -10 -9 -8 --------- Run | Jun Mat Min Exi Min Mat Distress Signals 12 | . 2 . . 2 8 Communications Jammed . | . . . . . . Distress Signals . | . . . . . . Times Spotted 98 | . 47 4 . 1 46 Peak Tracking Total 7 | . 4 2 . 1 7 Tactical Retreats 6 | . 4 . . . 2 Traps | -11 -10 -10 -10 -9 -8 ------- Run | Jun Mat Min Exi Min Mat Traps Triggered 1 | . 1 . . . . Indirectly . | . . . . . . Trap Hack Attempts 5 | . 5 . . . . Triggered . | . . . . . . Disarmed . | . . . . . . Reprogrammed 2 | . 2 . . . . Reused . | . . . . . . Traps Extracted . | . . . . . . Installed . | . . . . . . Triggered . | . . . . . . Exploded 1 | . . . 1 . . Machines | -11 -10 -10 -10 -9 -8 ---------- Run | Jun Mat Min Exi Min Mat Machines Disabled 2 | . . 2 . . . Max in Single Turn 2 | . . 2 . . . Machines Repaired 1 | . 1 . . . . Machines Sabotaged . | . . . . . . Overloaded Fab Kills . | . . . . . . Hacking | -11 -10 -10 -10 -9 -8 --------- Run | Jun Mat Min Exi Min Mat Machines Accessed 13 | . 9 . 1 . 3 Terminals 8 | . 7 . . . 1 Fabricators . | . . . . . . Repair Stations 3 | . 1 . . . 2 Recycling Units 1 | . 1 . . . . Scanalyzers . | . . . . . . Garrison Access . | . . . . . . Total Hacks 31 | . 21 . 1 . 9 Successful 17 | . 11 . 1 . 5 Failed 13 | . 9 . . . 4 Catastrophic 1 | . . . . . 1 Database Lockouts 1 | . 1 . . . . Manual 21 | . 17 . 1 . 3 Terminals 18 | . 15 . . . 3 Fabricators . | . . . . . . Repair Stations 10 | . 4 . . . 6 Recycling Units 2 | . 2 . . . . Scanalyzers . | . . . . . . Garrison Access . | . . . . . . Terminal Hacks 3 | . 1 . 1 . 1 Robot Analysis 2 | . 1 . . . 1 EX-Prototype ID Bank 1 | . . . 1 . . Fabricator Hacks . | . . . . . . Repair Station Hacks 7 | . 4 . . . 3 Scan Component 3 | . 2 . . . 1 Repair 3 | . 2 . . . 1 Refit 1 | . . . . . 1 Recycling Unit Hacks . | . . . . . . Scanalyzer . | . . . . . . Garrison Access Hacks . | . . . . . . Unauthorized Hacks 7 | . 6 . . . 1 Terminals 6 | . 5 . . . 1 Botnet 3 | . 2 . . . 1 Sabotage 2 | . 2 . . . . Search 1 | . 1 . . . . Fabricators . | . . . . . . Repair Stations . | . . . . . . Recycling Units 1 | . 1 . . . . Tunnel 1 | . 1 . . . . Scanalyzers . | . . . . . . Garrison Access . | . . . . . . Data Cores Recovered . | . . . . . . Used . | . . . . . . Hacking Detections 9 | . 6 . . . 3 Full Trace Events 6 | . 4 . . . 2 Feedback Events . | . . . . . . Feedback Blocked . | . . . . . . Robot Schematics Acquired . | . . . . . . Robots Built . | . . . . . . Authchips . | . . . . . . Time . | . . . . . . Total Robot Build Rating . | . . . . . . Part Schematics Acquired . | . . . . . . Parts Built . | . . . . . . Authchips . | . . . . . . Time . | . . . . . . Total Part Build Rating . | . . . . . . Parts Repaired 3 | . 2 . . . 1 Time 84 | . 52 . . . 32 Parts Recycled . | . . . . . . Recycled Matter . | . . . . . . Retrieved Matter . | . . . . . . Retrieved Components . | . . . . . . Parts Scanalyzed . | . . . . . . Part Schematics Acquired . | . . . . . . Parts Damaged . | . . . . . . Bothacking | -11 -10 -10 -10 -9 -8 ------------ Run | Jun Mat Min Exi Min Mat Used RIF Installer . | . . . . . . Robots Hacked . | . . . . . . Non-combat . | . . . . . . Combat . | . . . . . . Robot Hacks Applied . | . . . . . . Relay Couplers Released . | . . . . . . Fabnet Peak Effective % . | . . . . . . Robots Rewired . | . . . . . . Allies Hacked . | . . . . . . Hacks Repelled . | . . . . . . Allies | -11 -10 -10 -10 -9 -8 -------- Run | Jun Mat Min Exi Min Mat Total Allies . | . . . . . . Largest Group . | . . . . . . Highest-Rated Group . | . . . . . . Highest-Rated Ally . | . . . . . . Total Orders . | . . . . . . Ally Attacks . | . . . . . . Total Damage . | . . . . . . Kills . | . . . . . . Allies Corrupted . | . . . . . . Allies Melted . | . . . . . . Intel | -11 -10 -10 -10 -9 -8 ------- Run | Jun Mat Min Exi Min Mat Robot Analysis Total 2 | . 1 . . . 1 Derelict Logs Recovered 1 | . . 1 . . . Drone Launches . | . . . . . . Drone Recoveries . | . . . . . . Exploration | -11 -10 -10 -10 -9 -8 ------------- Run | Jun Mat Min Exi Min Mat Turns Passed 4958 | 51 1855 958 276 227 1591 Spaces Moved 2383 | 48 891 635 212 122 475 Core 37 | 12 . . . . 25 Treads . | . . . . . . Legs . | . . . . . . Wheels 2346 | 36 891 635 212 122 450 Hover . | . . . . . . Flight . | . . . . . . Fastest Speed 50 | 50 80 130 130 130 105 Average Speed 135 | 80 114 130 130 130 193 Slowest Speed 1600 | 150 140 130 130 130 1600 Overloaded Moves . | . . . . . . Propulsion Burnouts . | . . . . . . Robots Hopped . | . . . . . . Cave-ins Triggered . | . . . . . . Exploration Rate (%) 50 | 3 90 93 60 30 27 Regions Visited 5 Branch Regions 3 Pre-discovered Areas 1 | . 1 . . . . Known Exits Taken . | . . . . . . Unknown Exits Taken 5 | 1 1 1 1 1 . Scrap Searched 1 | . . 1 . . . Spaces Dug 24 | . . . . 24 . Terrain Destroyed 61 | . . 26 . 24 11 Melee . | . . . . . . Projectile 11 | . . . . . 11 AOE 50 | . . 26 . 24 . Terrain Rammed . | . . . . . . Walls Destroyed . | . . . . . . Machines Disabled . | . . . . . . Actions | -11 -10 -10 -10 -9 -8 --------- Run | Jun Mat Min Exi Min Mat Total 3566 | 55 1481 743 212 188 887 Wait 766 | . 405 93 . 66 202 Move 2378 | 47 890 634 211 121 475 Hop . | . . . . . . Pick Up 43 | . 20 1 1 . 21 Fast Attach 18 | 6 4 . . . 8 Attach 10 | . 1 . . . 9 Detach . | . . . . . . Swap 29 | 2 13 4 . . 10 Drop 22 | . 6 . . . 16 Fire 295 | . 137 11 . 1 146 Melee . | . . . . . . Ram . | . . . . . . Kick . | . . . . . . Crush . | . . . . . . Escape Stasis . | . . . . . . Rewire . | . . . . . . Trap 5 | . 5 . . . . Miscellaneous . | . . . . . . Route ------- -11/Junkyard -10/Materials (discovered 4 exits: [*Mat x3] / [*Min]) -10/Mines (discovered 2 exits: [*Mat] / *Exi) -10/Exiles -9/Mines -8/Materials (discovered 2 exits: [*Fac] / *Sto) History --------- Turn | Location | Event 36 | -11/Junkyard | Discovered new exit (range 15) 52 | -11/Junkyard | Entered Materials 312 | -10/Materials | Build established: Mutant 366 | -10/Materials | Discovered new exit (range 7) 571 | -10/Materials | Discovered new exit (range 4) 727 | -10/Materials | Central database locked down 812 | -10/Materials | Build established: Scavenger-Mutant 1030 | -10/Materials | Core integrity fell below 50% 1269 | -10/Materials | Repaired Assault Rifle 1296 | -10/Materials | Repaired Assault Rifle 1527 | -10/Materials | Discovered new exit (range 13) 1561 | -10/Materials | Core integrity fell below 20% 1596 | -10/Materials | Build established: Mutant 1674 | -10/Materials | Discovered new exit (range 13) 1907 | -10/Materials | Entered Mines 1938 | -10/Mines | Learned 2 Materials zone layouts 2050 | -10/Mines | Met a Derelict bent on vengeance 2519 | -10/Mines | Found a damaged Exp. Sensor Array with a note attached 2668 | -10/Mines | Discovered new exit (range 7) 2859 | -10/Mines | Deemed a non-threat by the Exiles lab entrance 2859 | -10/Mines | Discovered new exit (range 5) 2865 | -10/Mines | Entered Exiles 2898 | -10/Exiles | Met 8R-AWN 2920 | -10/Exiles | Met EX-HEX 2956 | -10/Exiles | Met EX-BIN 2972 | -10/Exiles | Aligned with FarCom system 2973 | -10/Exiles | Given EX-Vault access code 3003 | -10/Exiles | Opened EX-Vault 3014 | -10/Exiles | Found Superbattery 3043 | -10/Exiles | Warned to stay clear of 0b10 Research branches 3057 | -10/Exiles | Exiles lab attacked by MAIN.C 3124 | -10/Exiles | Discovered new exit (range 14) 3141 | -10/Exiles | Left Exiles lab with Superbattery 3141 | -10/Exiles | Entered Mines 3142 | -9/Mines | Assembled infested the area 3353 | -9/Mines | Met a Derelict testing a Signal Generator 3359 | -9/Mines | Discovered new exit (range 8) 3368 | -9/Mines | Entered Materials 3368 | -8/Materials | Evolved 4 slots: Propulsion x2, Utility x2 3369 | -8/Materials | Identified exit to Storage 3745 | -8/Materials | Lost 4 parts (3n1u) 3815 | -8/Materials | Discovered new exit (range 15) 4107 | -8/Materials | Core integrity fell below 50% 4146 | -8/Materials | Lost 4 parts (3n1u) 4640 | -8/Materials | Repaired Imp. Light Cannon 4959 | -8/Materials | Self-destructed Last Messages --------------- 04903_ Acquired Hvy. Assault Rifle. 04906_ Acquired 54 matter. 04907_ Acquired 4 matter. 04917_ R-06 Scavenger collects Aluminum Leg. 04921_ R-06 Scavenger collects Particle Gun. 04923_ R-06 Scavenger knocked back. 04929_ Acquired 43 matter. 04932_ Acquired 3 matter. 04936_ U-05 Engineer builds a Wall. 04936_ Acquired 3 matter. 04939_ R-06 Scavenger destroyed. 04944_ Dropped Com. Wheel. 04944_ Acquired Com. Wheel. 04945_ U-05 Engineer destroyed. 04949_ Dropped Wheel. 04949_ Acquired Com. Wheel. 04951_ Acquired 3 matter. 04953_ Dropped Com. Wheel. 04953_ Acquired Com. Wheel. 04955_ R-06 Scavenger collects Prototype Energy Gun. Map ----- +----------------------------------------------------+ | ????????????? #???????????????????????????????? | | ????????????? ????????????????????????????????? | | ????????????? ????????????????????????????????? | | ???########### #???????????????????? #????????? | | ???#!! ## #???????????????????? #????????? | | ??#=! !## #? #????????? + """ # | | ??#=! ##%%#?#########?????????# # """ # | | ?# = ##=*##?########?????????# # ## | | ########+## #?# #?????????# # """ ## | | / %% #?# ! "" #?????????# # """ ## | | # %% T #?# T" ########### # """ ## | | # #####+## #?# ] "" ## # # ## | | ?# # ######?# # # ######### | | ?#% # ## ### [##%=== %# ######### | | ??# # ############+###%==[ # ## # | | ??#%[+ # #* !## ==]= # ## # | | ??#[%# ! # # [ + [[ #= ##""" # | | ??#[[# # # ## ![%[ !+[ ##""" + | | ??# !######## ## ### [[* =#[ ##""" # | | ??# #????# # "# #?#% # ## # | | ??# #????# # "# ############ ######### | | ??#!*####??## "# # #?# ####### | | ??#= ######## % ## # #?# | | ### # = #####+####### #! % #?# > | | % % %!%%%[ #**""" ### | | <% % = @=%""" ## ####### | | = % #!!""" ################ | | ##+### #####%#########%!* !# # # | | %!####+#####?#%#! %= # #""" # """ # | | #?? ?????# + *![! # * " " #""" # """ + | | #?? ""?????# # * * # "R" #???????????????? | | " " #? """????# #%== # """ #???????????????? | | "R" #? """????# #########"#+#####???????????????? | | """ # ???# ########### #???????????????????? | | ##### """ ???# ## # #???????????????????? | | ????# ""?????# ## # #???????????????????? | | ????# ???????# ## # ########????????????? | | ????# ???????# ## [ = # ?????????????? | | ????####???????# ## ! + ??????????????? | | ???????????????# ## ! # ????????????????? | | ????????######## ## # #?????????????????? | | ? + # #?????????????????? | | ????????########+## + #?????????????????? | | ???????????# ########## #?????????????????? | | ???????????# ! #??####### #?????????????????? | | ???????????# + #?????????????????? | | ???????????# """ #??######### #?????????????????? | | ???????????# """ #??????????# #?????????????????? | | ???????????# """ #??????????# #?????????????????? | | ???????????########??????????# #?#+#?????????????? | +----------------------------------------------------+ Best States ------------- Heat Dissipation 41 Energy Generation 14 Energy Capacity 280 Matter Stores 300 Matter Capacity 300 Sight Range 16 Terrain Scan Density 10 Armor Coverage 305 Weapon Shielding 33 Evasion (%) 50 Item Schematics ----------------- None Robot Schematics ------------------ None Fabricated ------------ Nothing Alien Tech Used ----------------- None Achievements -------------- None Challenges ------------ None Game ------ Seed TacticalWardroneStorage Manual? 0 Play Time 00:30:22 Cumulative 179.2 hours Start 2023.05.06 @ 00:34:23 End 2023.05.06 @ 01:05:28 Sessions 1 Manual Loads 0 Difficulty Rogue Special Mode None Game No. 527 Rogue 527 Adventurer 0 Explorer 0 Win Type - Total 8 Types 7/0/0/1/0/0/0/0/0 Lore% 75 Gallery% 75 Achievement% 66 Wizard Run 0 Options --------- ASCII 0 Keyboard 0 Movement Mouse Keybinds 0 Fullscreen 1 Font 16/SmallcapsGlow Map View 75x55 Tactical HUD 1 Map Filters NONE Filters NONE Steam 1 RUN: cc392c8c-6056-4f71-963a-7ab94713f9d1